Cogmind - Beta 16 *** ADVENTURER MODE // 2025.11.18 @ 13:18:26 Player: oshi0ne1 Result: Destroyed by 8R-AWN with 8R-AWN's Boregun Performance ------------- Evolutions (1) 500 Regions Visited (5) 1000 Robots Destroyed (38) 190 Value Destroyed (956) 956 Prototype IDs (25) 500 Alien Tech Used (0) 0 Bonus (252) 252 TOTAL SCORE: 3398 Bonus ------- Aligned with FarCom 300 Friendly Fire -48 Cogmind --------- Core Integrity 0/400 Matter 10/300 Energy 100/100 System Corruption 4% Temperature Cool (0) Movement Core (350) Ox6 Location -9/Exiles Parts ------- > --- POWER (1) -------- (None) > --- PROPULSION (2) --- (None) > --- UTILITY (4) ------ Large Storage Unit Improved Targeting Computer > --- WEAPON (2) ------- (None) > --- INVENTORY (15) --- Ion Engine Light Ion Engine Light Ion Engine Light Treads Experimental Sensor Array AWS/Autocannon Rocket Launcher Peak State ------------ > --- POWER ------------ Improved Ion Engine > --- PROPULSION ------- Light Treads Light Treads > --- UTILITY ---------- Large Storage Unit Seismic Detector Improved Targeting Computer PSU Rigger > --- WEAPON ----------- Heavy Assault Rifle Improved Assault Rifle > --- INVENTORY -------- Ion Engine Light Ion Engine Light Ion Engine Light Treads Light Treads Light Treads Experimental Sensor Array EM Pulse Gun Heavy EM Pulse Gun Improved Assault Rifle Light Cannon Rocket Launcher [Rating: 23] Favorites ----------- Power Ion Engine Engine Ion Engine Propulsion Light Treads Treads Light Treads Utility Large Storage Unit Device Seismic Detector Storage Large Storage Unit Processor Improved Targeting Computer Hackware Hacking Suite Weapon Assault Rifle Energy Gun EM Pulse Gun Ballistic Gun Assault Rifle Ballistic Cannon Light Cannon Launcher Rocket Launcher Build | -11 -10 -10 -9 -9 -9 ------- Run | Yrd Mat Min Mat Min Exi Slots Evolved 2 | . . . 2 . . Power . | . . . . . . Propulsion . | . . . . . . Utility 2 | . . . 2 . . Weapon . | . . . . . . Parts Attached 31 | 7 1 1 9 10 3 Power 4 | 1 . . . 3 . Engine 4 | 1 . . . 3 . Core . | . . . . . . Reactor . | . . . . . . Propulsion 8 | 2 . . 3 1 2 Treads 8 | 2 . . 3 1 2 Leg . | . . . . . . Wheel . | . . . . . . Hover . | . . . . . . Flight . | . . . . . . Utility 9 | 1 1 1 2 3 1 Device 4 | . . 1 . 2 1 Storage 2 | 1 1 . . . . Processor 2 | . . . 1 1 . Hackware 1 | . . . 1 . . Protection . | . . . . . . Artifact . | . . . . . . Weapon 10 | 3 . . 4 3 . Energy Gun 2 | 1 . . . 1 . Energy Cannon . | . . . . . . Ballistic Gun 6 | 2 . . 3 1 . Ballistic Cannon 1 | . . . 1 . . Launcher 1 | . . . . 1 . Special Weapon . | . . . . . . Impact Weapon . | . . . . . . Slashing Weapon . | . . . . . . Piercing Weapon . | . . . . . . Special Melee Weapon . | . . . . . . Unidentified Prototypes 2 | . . . 1 . 1 Parts Lost 16 | . . . 2 3 11 Power 2 | . . . . 1 1 Propulsion 5 | . . . . 1 4 Utility 3 | . . . 2 1 . Weapon 6 | . . . . . 6 Highest Loss Streak 9 | . . . 1 2 9 To Critical Strikes 11 | . . . . . 11 Average Backups 6 | 1 3 4 5 11 11 Power 1 | . 1 1 1 1 3 Propulsion 1 | . . . 1 3 2 Utility . | . . 1 1 1 1 Weapon 3 | . 1 2 2 5 4 Tool/Special . | . . . . . . Unused Backups 3 | . . . . . 3 Power 1 | . . . . . 1 Propulsion . | . . . . . . Utility 1 | . . . . . 1 Weapon 1 | . . . . . 1 Tool/Special . | . . . . . . Average Slot Usage (%) 84 | . 85 86 84 84 80 Engine 11 | . 14 14 11 10 8 Treads 23 | . 28 28 22 21 19 Device 4 | . . 2 4 6 9 Storage 11 | . 14 13 11 11 11 Processor 6 | . . . 7 12 15 Hackware 1 | . . . 6 . . Energy Gun 8 | . 14 14 5 8 . Ballistic Gun 14 | . 14 14 16 11 15 Peak Build Rating 23 | 6 7 8 16 18 23 Average Rating 10 | 4 6 6 12 14 15 On Entrance 8 | . 6 6 8 13 17 Avg Prop Armor Cover (%) . | . . . . . . Naked Turns . | . . . . . . Heaviest Build 35 | 14 29 30 31 34 35 Greatest Support 40 | 40 40 40 40 40 40 Greatest Overweight (x) 7 | . . . . 1 7 Average Overweight (x) . | . . . . . . Largest Inventory Capacity 15 | 8 15 15 15 15 15 Average Capacity 14 | 7 12 14 14 15 15 Most Carried 15 | 2 4 5 9 13 15 Average Carried 6 | 1 3 4 5 11 12 Final Capacity 15 | 8 15 15 15 15 15 Final Carried 13 | 2 4 4 9 13 9 Class Distribution -------------------- 72% | Mutant 14% | Hacker-Mutant 12% | Scavenger-Mutant Dominant Class ---------------- Mutant | -10/Materials Mutant | -10/Mines Hacker-Mutant | -9/Materials Mutant | -9/Mines Scavenger-Mutant | -9/Exiles Resources | -11 -10 -10 -9 -9 -9 ----------- Run | Yrd Mat Min Mat Min Exi Matter Collected 834 | 217 . 155 293 169 . Remotely . | . . . . . . Salvage Created 1148 | . . 189 677 251 31 Parts 97 | . . 13 62 22 . Haulers Intercepted . | . . . . . . Recyclers Shooed 1 | . . . 1 . . Parts Field Recycled . | . . . . . . Retrieved Matter . | . . . . . . Parts Self-Destructed . | . . . . . . Prevented . | . . . . . . Parts Restored . | . . . . . . Kills | -11 -10 -10 -9 -9 -9 ------- Run | Yrd Mat Min Mat Min Exi Combat Hostiles Destroyed 38 | . . 5 17 9 7 Guns 26 | . . 5 17 4 . AOE 12 | . . . . 5 7 Classes Destroyed 9 | . . 3 4 1 1 Builder 3 | . . . 2 1 . Tunneler 2 | . . 1 . 1 . Operator 2 | . . . 2 . . Swarmer 12 | . . 2 6 4 . Grunt 11 | . . 3 6 2 . Brawler 2 | . . . 1 1 . Sentry 4 | . . . 4 . . Demolisher 2 | . . . . 2 . Assembled 7 | . . . . . 7 Best Kill Streak 7 | . . 2 4 7 7 Combat Bots Only 7 | . . 2 4 6 7 Max Kills in Single Turn 4 | . . 1 1 4 4 Gunslinging . | . . . . . . Exploded 4 | . . . . 4 4 Melee . | . . . . . . Uniques/NPCs Destroyed . | . . . . . . Combat | -11 -10 -10 -9 -9 -9 -------- Run | Yrd Mat Min Mat Min Exi Hostile Shots Fired 224 | . . 23 82 18 101 Missed 59 | . . 6 26 3 24 Hits 165 | . . 17 56 15 77 Melee 2 | . . . 2 . . Projectile 163 | . . 17 54 15 77 AOE 9 | . . . . 9 . Critical Strikes 44 | . . . 1 1 42 Damage Taken 2083 | . . 187 543 312 1041 Core 419 | . . 11 85 56 267 Absorbed by Shields . | . . . . . . Ignored by Resistances 600 | . . 55 160 87 298 Core Remaining (%) 97 | 100 . 95 . . . Volleys Fired 94 | . . 12 42 13 27 Largest 2 | . . 2 2 2 2 Hottest 78 | . . 60 60 78 70 Shots Fired 170 | . . 24 82 26 38 Gun 144 | . . 24 81 22 17 Cannon 13 | . . . 1 . 12 Launcher 13 | . . . . 4 9 Special . | . . . . . . Kinetic 109 | . . 12 62 9 26 Thermal . | . . . . . . Explosive 13 | . . . . 4 9 Electromagnetic 48 | . . 12 20 13 3 Robot Hit Streak 22 | . . 18 20 22 18 Robot Miss Streak 2 | . . 1 2 1 1 Penetration Max . | . . . . . . Secondary Targets 5 | . . . 4 1 . Max Gunslinging Chain 1 | . . . 1 1 . Shots Hit Robots 143 | . . 22 65 22 34 Core Hits 74 | . . 10 32 16 16 Critical Kills 1 | . . . . 1 . Critical Parts Destroyed . | . . . . . . Critical Strikes 1 | . . . . 1 . Destroy 1 | . . . . 1 . Melee Attacks . | . . . . . . Impact . | . . . . . . Slashing . | . . . . . . Piercing . | . . . . . . Sneak Attacks . | . . . . . . Combat Hostiles . | . . . . . . Follow-up Attacks . | . . . . . . Damage Inflicted 2530 | . 1 294 907 447 881 Guns 1622 | . . 265 905 272 180 Cannons 199 | . . . . . 199 Explosions 706 | . . 29 . 175 502 Melee . | . . . . . . Ramming 3 | . 1 . 2 . . Kinetic 1294 | . . 125 704 89 376 Thermal 161 | . . 29 . 132 . Explosive 545 | . . . . 43 502 Electromagnetic 527 | . . 140 201 183 3 Impact . | . . . . . . Slashing . | . . . . . . Piercing . | . . . . . . Highest Corruption 4 | . 1 1 4 4 4 Average Corruption 2 | . 1 1 4 4 4 Corruption Purged . | . . . . . . Corruption Blocked . | . . . . . . Effects 40 | . . 13 4 10 13 Message Errors 7 | . . 1 1 4 1 Matter Fused 9 | . . 2 2 . 5 Heat Flow Errors 6 | . . 2 . 2 2 Energy Discharges 7 | . . 4 . 2 1 Parts Rejected 2 | . . 1 . . 1 Parts Fused 3 | . . 2 . . 1 Data Loss (minor) 3 | . . 1 . 1 1 Misfires 1 | . . . . . 1 Alerts 1 | . . . . 1 . Weapon Failures 1 | . . . 1 . . Overload Shots . | . . . . . . Overflow Damage 31 | . . . . 17 14 Projectiles . | . . . . . . Explosions 31 | . . . . 17 14 Melee . | . . . . . . Knockbacks 5 | . . . . . 5 Impact . | . . . . . . Kinetic 5 | . . . . . 5 Secondary . | . . . . . . Self-Inflicted Damage 32 | . . 24 . 8 . Shots 2 | . . 1 . 1 . Rammed 2 | . 1 . 1 . . Targets Rammed 2 | . 1 . 1 . . Kicked . | . . . . . . Crushed . | . . . . . . Highest Temperature 373 | . . 276 373 129 195 Average Temperature 76 | . . 75 99 36 99 Received Heat Transfer 372 | . . 117 210 45 . Siege Activations . | . . . . . . Martial Activations . | . . . . . . Shielding Activations . | . . . . . . Robots Disrupted . | . . . . . . Combat Hostiles . | . . . . . . Robots Corrupted . | . . . . . . Combat Hostiles . | . . . . . . Parts Fried 1 | . . 1 . . . Impact Corruptions . | . . . . . . Robots Melted . | . . . . . . Combat Hostiles . | . . . . . . Parts Melted . | . . . . . . Heat Transferred 150 | . . . . 150 . Parts Sabotaged . | . . . . . . Parts Stolen . | . . . . . . Parts Stripped . | . . . . . . Power Chain Reactions 2 | . . 1 . 1 . Alert | -11 -10 -10 -9 -9 -9 ------- Run | Yrd Mat Min Mat Min Exi Maximum Alert Level . | . . . . . . Low Security (%) 100 | 100 100 100 100 100 . Level 1 . | . . . . . . Level 2 . | . . . . . . Level 3 . | . . . . . . Level 4 . | . . . . . . Level 5 . | . . . . . . High Security . | . . . . . . Max Security . | . . . . . . Peak Influence 153 | . . 78 126 153 . Initial 36 | . . . . 36 . Average 29 | . . 9 39 65 . Influence Increases 893 | . . 158 482 253 . Destroy 0b10 Robot/C 620 | . . 100 340 180 . Destroy 0b10 Robot/NC 35 | . . 5 20 10 . Destroy Leader 140 | . . 20 90 30 . Successful Hack 8 | . . . 8 . . Disable Machine 27 | . . . 9 18 . Destroy Structure 18 | . . 3 . 15 . Lose Combat Pursuer 45 | . . 30 15 . . Influence Decreases 893 | . . 158 372 320 43 Entered New Map 117 | . . . . 74 43 Time Decay 726 | . . 158 352 216 . Lost Part 50 | . . . 20 30 . Squads Dispatched 2 | . . . 2 . . Investigation 1 | . . . 1 . . Extermination . | . . . . . . Reinforcement 1 | . . . 1 . . Assault . | . . . . . . Garrison . | . . . . . . Intercept . | . . . . . . Searches Triggered . | . . . . . . Construction Impeded . | . . . . . . Haulers Reinforced . | . . . . . . Active Scanning Responses . | . . . . . . Cargo Convoy Interrupts . | . . . . . . Stealth | -11 -10 -10 -9 -9 -9 --------- Run | Yrd Mat Min Mat Min Exi Distress Signals 5 | . . . 5 . . Communications Jammed . | . . . . . . Distress Signals . | . . . . . . Times Spotted 53 | . . 8 27 10 8 Peak Tracking Total 9 | . . 2 7 4 9 Tactical Retreats 2 | . . 1 1 . . Traps | -11 -10 -10 -9 -9 -9 ------- Run | Yrd Mat Min Mat Min Exi Traps Triggered 3 | . 2 . 1 . . Indirectly . | . . . . . . Trap Hack Attempts . | . . . . . . Triggered . | . . . . . . Disarmed . | . . . . . . Reprogrammed 10 | . . . 10 . . Reused . | . . . . . . Traps Extracted . | . . . . . . Installed . | . . . . . . Triggered . | . . . . . . Machines | -11 -10 -10 -9 -9 -9 ---------- Run | Yrd Mat Min Mat Min Exi Machines Disabled 5 | . . . 1 2 2 Max in Single Turn 1 | . . . 1 1 1 Machines Repaired . | . . . . . . Machines Dismantled . | . . . . . . Machines Sabotaged . | . . . . . . Overloaded Fab Kills . | . . . . . . Hacking | -11 -10 -10 -9 -9 -9 --------- Run | Yrd Mat Min Mat Min Exi Machines Accessed 4 | . . . 3 . 1 Terminals 2 | . . . 2 . . Fabricators . | . . . . . . Repair Stations . | . . . . . . Recycling Units . | . . . . . . Scanalyzers 1 | . . . 1 . . Garrison Access . | . . . . . . Total Hacks 11 | . . . 10 . 1 Successful 10 | . . . 9 . 1 Failed 1 | . . . 1 . . Catastrophic . | . . . . . . Database Lockouts . | . . . . . . Manual 1 | . . . . . 1 Terminals 8 | . . . 8 . . Fabricators . | . . . . . . Repair Stations . | . . . . . . Recycling Units . | . . . . . . Scanalyzers 2 | . . . 2 . . Garrison Access . | . . . . . . Terminal Hacks 8 | . . . 7 . 1 Emergency Access Points 1 | . . . 1 . . Alert Level 1 | . . . 1 . . Locate Traps 2 | . . . 2 . . Reprogram Traps 2 | . . . 2 . . Zone Layout 1 | . . . 1 . . Proto ID Catalog 1 | . . . . . 1 Fabricator Hacks . | . . . . . . Repair Station Hacks . | . . . . . . Recycling Unit Hacks . | . . . . . . Scanalyzer 2 | . . . 2 . . Insert Component 1 | . . . 1 . . Analyze 1 | . . . 1 . . Garrison Access Hacks . | . . . . . . Unauthorized Hacks . | . . . . . . Terminals . | . . . . . . Fabricators . | . . . . . . Repair Stations . | . . . . . . Recycling Units . | . . . . . . Scanalyzers . | . . . . . . Garrison Access . | . . . . . . Data Cores Recovered 1 | . . . 1 . . Used . | . . . . . . Hacking Detections 2 | . . . 2 . . Full Trace Events . | . . . . . . Feedback Events . | . . . . . . Feedback Blocked . | . . . . . . Robot Schematics Acquired . | . . . . . . Robots Built . | . . . . . . Authchips . | . . . . . . Time . | . . . . . . Total Robot Build Rating . | . . . . . . Part Schematics Acquired 1 | . . . 1 . . Parts Built . | . . . . . . Authchips . | . . . . . . Time . | . . . . . . Total Part Build Rating . | . . . . . . Part Studies Acquired . | . . . . . . Parts Repaired . | . . . . . . Time . | . . . . . . Parts Recycled . | . . . . . . Recycled Matter . | . . . . . . Retrieved Matter . | . . . . . . Retrieved Components . | . . . . . . Parts Scanalyzed 1 | . . . 1 . . Part Schematics Acquired 1 | . . . 1 . . Parts Damaged . | . . . . . . Bothacking | -11 -10 -10 -9 -9 -9 ------------ Run | Yrd Mat Min Mat Min Exi Used RIF Installer . | . . . . . . Robots Hacked . | . . . . . . Non-combat . | . . . . . . Combat . | . . . . . . Robot Hacks Applied . | . . . . . . Relay Couplers Released . | . . . . . . Fabnet Peak Effective % . | . . . . . . Robots Rewired . | . . . . . . Allies Hacked . | . . . . . . Hacks Repelled . | . . . . . . Allies | -11 -10 -10 -9 -9 -9 -------- Run | Yrd Mat Min Mat Min Exi Total Allies 1 | . . . . 1 . Largest Group 1 | . . . . 1 1 Highest-Rated Group 31 | . . . . 31 31 Highest-Rated Ally 31 | . . . . 31 31 Total Orders . | . . . . . . Ally Attacks 2 | . . . . 2 . Total Damage 43 | . . . . 43 . Kills . | . . . . . . Allies Corrupted . | . . . . . . Allies Melted . | . . . . . . Intel | -11 -10 -10 -9 -9 -9 ------- Run | Yrd Mat Min Mat Min Exi Active Infowar (turns) 1256 | . . 179 402 280 395 Sensors 581 | . . 179 402 . . Seismic 675 | . . . . 280 395 Robot Analysis Total . | . . . . . . Derelict Logs Recovered 1 | . . 1 . . . Drone Launches . | . . . . . . Drone Recoveries . | . . . . . . Exploration | -11 -10 -10 -9 -9 -9 ------------- Run | Yrd Mat Min Mat Min Exi Turns Passed 3393 | 141 142 1127 903 605 475 Spaces Moved 1809 | 87 85 665 470 299 203 Core 11 | 10 . . . . 1 Treads 1798 | 77 85 665 470 299 202 Legs . | . . . . . . Wheels . | . . . . . . Hover . | . . . . . . Flight . | . . . . . . Fastest Speed 50 | 50 160 160 160 160 160 Average Speed 160 | 147 160 160 160 161 163 Slowest Speed 400 | 160 160 160 160 240 400 Overloaded Moves . | . . . . . . Propulsion Burnouts . | . . . . . . Robots Hopped . | . . . . . . Potential Cave-ins . | . . . . . . Cave-ins Triggered . | . . . . . . Exploration Rate (%) 39 | 6 12 87 35 56 41 Regions Visited 5 Branch Regions 3 Pre-discovered Areas . | . . . . . . Known Exits Taken 1 | . . . 1 . . Unknown Exits Taken 4 | 1 1 1 . 1 . Scrap Searched 2 | . . 1 . 1 . Spaces Dug . | . . . . . . Terrain Destroyed 70 | . . 3 . 40 27 Melee . | . . . . . . Projectile . | . . . . . . AOE 70 | . . 3 . 40 27 Terrain Rammed . | . . . . . . Walls Destroyed . | . . . . . . Machines Disabled . | . . . . . . Actions | -11 -10 -10 -9 -9 -9 --------- Run | Yrd Mat Min Mat Min Exi Total 2132 | 98 92 704 535 392 311 Wait 144 | . . 22 1 57 64 Move 1804 | 86 84 664 469 298 203 Hop . | . . . . . . Pick Up 23 | 3 1 1 6 9 3 Fast Attach 14 | 6 1 2 3 1 1 Attach 17 | 1 2 1 2 4 7 Detach 7 | 1 3 1 1 . 1 Swap 15 | . . . 7 7 1 Drop 12 | 1 . 1 3 3 4 Fire 94 | . . 12 42 13 27 Melee . | . . . . . . Ram . | . . . . . . Kick . | . . . . . . Crush 2 | . 1 . 1 . . Escape Stasis . | . . . . . . Rewire . | . . . . . . Trap . | . . . . . . Miscellaneous . | . . . . . . Route ------- -11/Scrapyard -10/Materials -10/Mines (discovered 2 exits: *Mat x2) -9/Materials (discovered 2 exits: *Min x2) -9/Mines (discovered 3 exits: [*Mat x2] / *Exi) -9/Exiles History --------- Turn | Location | Event 33 | -11/Scrapyard | Discovered new exit (range 15) 142 | -11/Scrapyard | Entered Materials 150 | -10/Materials | Discovered new exit (range 16) 284 | -10/Materials | Entered Mines 303 | -10/Mines | Build established: Mutant 394 | -10/Mines | Met a Derelict bent on vengeance 551 | -10/Mines | Found a damaged Exp. Sensor Array with a note attached 566 | -10/Mines | Found Prototype Device 785 | -10/Mines | Found a hidden stash of uninstalled traps 1308 | -10/Mines | Learned 2 Materials zone layouts 1323 | -10/Mines | Discovered new exit (range 5) 1348 | -10/Mines | Discovered new exit (range 3) 1411 | -10/Mines | Entered Materials 1411 | -9/Materials | Evolved 2 slots: Utility x2 1412 | -9/Materials | Identified exit to Mines 1805 | -9/Materials | Build established: Hacker-Mutant 1908 | -9/Materials | Identified Exp. Sensor Array 2193 | -9/Materials | Discovered exit to Mines (range 14) 2301 | -9/Materials | Build established: Mutant 2314 | -9/Materials | Entered Mines 2336 | -9/Mines | Received a Rocket Launcher from a helpful Derelict 2338 | -9/Mines | Discovered new exit (range 12) 2543 | -9/Mines | Assembled infested the area 2729 | -9/Mines | Received a Mining Laser from a helpful Derelict 2782 | -9/Mines | Discovered new exit (range 9) 2803 | -9/Mines | Joined a pair of Derelicts in attacking an 0b10 outpost 2911 | -9/Mines | Discovered new exit (range 5) 2919 | -9/Mines | Entered Exiles 2919 | -9/Exiles | Accompanied by 1 ally 2959 | -9/Exiles | Met 8R-AWN 2985 | -9/Exiles | Met EX-HEX 3030 | -9/Exiles | Met EX-BIN 3051 | -9/Exiles | Aligned with FarCom system 3052 | -9/Exiles | Given EX-Vault access code 3105 | -9/Exiles | Opened EX-Vault 3113 | -9/Exiles | Found Prototype Device 3117 | -9/Exiles | Identified PSU Rigger 3118 | -9/Exiles | Found Prototype Ballistic Cannon 3139 | -9/Exiles | Build established: Scavenger-Mutant 3170 | -9/Exiles | Identified AWS/Autocannon 3204 | -9/Exiles | Warned to stay clear of 0b10 Research branches 3210 | -9/Exiles | Attacked by the Exiles 3253 | -9/Exiles | Destroyed 7 combat bots 3287 | -9/Exiles | Core integrity fell below 50% 3344 | -9/Exiles | Lost 9 parts (1p2n6w) 3351 | -9/Exiles | Core integrity fell below 20% 3394 | -9/Exiles | Destroyed by 8R-AWN with 8R-AWN's Boregun Last Messages --------------- Penetrated by HV Slug. HV Slug penetrates Wall. Penetrated by HV Slug. HV Slug penetrates Wall. Penetrated by HV Slug. HV Slug penetrates Wall. Penetrated by HV Slug. Critical hit (Destroy). Lgt. Treads destroyed. HV Slug penetrates Wall. The unstable cave ceiling collapses. Penetrated by HV Slug. HV Slug penetrates Wall. Penetrated by HV Slug. HV Slug penetrates Wall. Penetrated by HV Slug. Critical hit (Destroy). Lgt. Treads destroyed. HV Slug penetrates Wall. Penetrated by HV Slug. Map ----- +----------------------------------------------------+ | ?????????????"""""?# #########???????????????? | | ????????????"""" ## #???????????????????????? | | ???????????#""X" #???????????????????????? | | ???????????#" #???????????????????????? | | ???????????#" ## #???????????????????????? | | ???????????#""""""?# #?#########?????????????? | | ????????????#"###??# #?#"""""""#?????????????? | | ???????????????????# #?#"""""""#?????????????? | | ???????????????????# #?#"""""""#?????????????? | | ??????????????????## ###"" """"#?????????????? | | ??????????????????#" """"#?????????????? | | ??????????????????#" """#?????????????? | | ??????????????????#" """#?????????????? | | ??????????????????#" """#?????????????? | | ??????????????????#" """#?????????????? | | ??????????????????#" """##????????????? | | ??????????????????## """""????????????? | | ????????????????#??# """##????????????? | | ???????????? ???# ?# "X" """""????????????? | | ???????????? #? # """ # ????????????? | | ?????????????? ; """"""""#?????????????? | | ??????????# ## # ;# #########?????????????? | | ???????????# ;; ##????????????????????? | | ????????????###;;; # ##???????????????????? | | ???????????#; #???????????????????? | | ??????????"" @ #?###########???????? | | ?????????"" """ " % """""##??????? | | ?????????? ! g """"##?????? | | ????????? % " #?????? | | ????????? % """#?????? | | ????????? " "#?????? | | ?????????? " "##????? | | ?????????? ""###??? | | ??????????? """""" """#??? | | ??????????? ######""" "#??? | | ???????????? ""#?????#####""" ##?? | | ?????????????????????????##""" ##? | | ??????????????????????????#"""" ## | | ??????????????????????????#"" | | ??????????????????????????"""" | | ?????????????????????????" | | ???????????????????????" | | ???????????????????????? # | | ??????????????????????? ## | | ??????????????????????? " ##? | | ???????????????????????? "" """ ""#?? | | ??????????????????????????"" " " ""#" "##?? | | ???????????????????????????##""" """##"""""""##??? | | ????????????????????????????###"""???#########???? | | ???????????????????????????????#?????????????????? | +----------------------------------------------------+ Best States ------------- Heat Dissipation 28 Energy Generation 12 Energy Capacity 265 Matter Stores 300 Matter Capacity 300 Sight Range 16 Robot Scan Range 14 Terrain Scan Density 10 Resistance: KI 20 Resistance: TH 20 Resistance: EX 45 Resistance: EM 20 Resistance: I 20 Resistance: S 20 Resistance: P 20 Evasion (%) 40 Targeting Accuracy 12 Recoil Reduction 2 Offensive Hacking 20 Item Schematics ----------------- Exp. Sensor Array | -9/Materials | Scanalyzed Robot Schematics ------------------ None Fabricated ------------ Nothing Repaired ---------- Nothing Studied --------- None Alien Tech Used ----------------- None Achievements -------------- Safety First Challenges ------------ None Game ------ Seed BattleFrostBlaster Manual? 0 Play Time 00:24:45 Cumulative 18.0 hours Start 2025.11.18 @ 02:27:02 End 2025.11.18 @ 13:18:26 Sessions 3 Manual Loads 0 Difficulty Adventurer Special Mode None Game No. 34 Rogue 1 Adventurer 33 Explorer 0 Win Type - Total 0 Types 0/0/0/0/0/0/0/0/0/0 Lore% 13 Gallery% 22 Achievement% 19 Wizard Run 0 Options --------- Layout 2 ASCII 0 Keyboard 0 Movement Vi Keybinds 0 Fullscreen 1 Font 24/Smallcaps Map View 50x44 Zoom Use 0% Tactical HUD 0 Map Filters NONE Filters NONE Steam 1 RUN: 1c27a8c4-15fb-4076-8b0d-9e4971c93030